[Event "Titled Tuesday Blitz July 11 Early 2023"]
[White "Aravindh, Chithambaram VR."]
[Black "Zakhartsov, Vladimir"]
[WhiteFideId "5072786"]
[BlackFideId "4145097"]
[WhiteElo "2939"]
[BlackElo "2920"]
[Result "1-0"]
[Round "7"]
[TimeControl "180+2"]
[Date "2023.07.11"]
[WhiteClock "0:00:09"]
[BlackClock "0:00:00"]
[Board "3"]

1. b3 {[%clk 0:03:00]}  e5 {[%clk 0:02:53]} 2. Bb2 {[%clk 0:03:00]}  d6 {[%clk 0:02:51]} 3. c4 {[%clk 0:02:59]}  g6 {[%clk 0:02:51]} 4. d4 {[%clk 0:02:58]}  Bg7 {[%clk 0:02:51]} 5. dxe5 {[%clk 0:02:57]}  Nd7 {[%clk 0:02:51]} 6. Nc3 {[%clk 0:02:54]}  dxe5 {[%clk 0:02:48]} 7. g3 {[%clk 0:02:46]}  Ne7 {[%clk 0:02:43]} 8. Bg2 {[%clk 0:02:44]}  O-O {[%clk 0:02:44]} 9. Qc2 {[%clk 0:02:35]}  Nf5 {[%clk 0:02:29]} 10. e3 {[%clk 0:02:31]}  Nc5 {[%clk 0:02:26]} 11. Rd1 {[%clk 0:02:27]}  Nd7 {[%clk 0:01:57]} 12. Nf3 {[%clk 0:02:19]}  c6 {[%clk 0:01:57]} 13. O-O {[%clk 0:02:16]}  Qc7 {[%clk 0:01:57]} 14. Ne4 {[%clk 0:02:06]}  Re8 {[%clk 0:01:48]} 15. c5 {[%clk 0:02:05]}  Nf8 {[%clk 0:01:19]} 16. Rd2 {[%clk 0:01:40]}  b6 {[%clk 0:01:08]} 17. Rfd1 {[%clk 0:01:39]}  bxc5 {[%clk 0:01:03]} 18. Qxc5 {[%clk 0:01:30]}  Ne6 {[%clk 0:01:00]} 19. Qc2 {[%clk 0:01:29]}  h5 {[%clk 0:00:56]} 20. h4 {[%clk 0:01:23]}  a5 {[%clk 0:00:52]} 21. Nfg5 {[%clk 0:00:59]}  Ra7 {[%clk 0:00:42]} 22. Nd6 {[%clk 0:00:41]}  Nxd6 {[%clk 0:00:40]} 23. Rxd6 {[%clk 0:00:41]}  Nd4 {[%clk 0:00:23]} 24. Bxd4 {[%clk 0:00:39]}  exd4 {[%clk 0:00:23]} 25. Rxc6 {[%clk 0:00:39]}  Qb8 {[%clk 0:00:24]} 26. exd4 {[%clk 0:00:35]}  Bg4 {[%clk 0:00:21]} 27. Bf3 {[%clk 0:00:33]}  Bf5 {[%clk 0:00:19]} 28. Qc4 {[%clk 0:00:27]}  Bh6 {[%clk 0:00:12]} 29. d5 {[%clk 0:00:16]}  Bxg5 {[%clk 0:00:10]} 30. hxg5 {[%clk 0:00:17]}  Qe5 {[%clk 0:00:09]} 31. Qf4 {[%clk 0:00:14]}  Qb2 {[%clk 0:00:07]} 32. Qd2 {[%clk 0:00:12]}  Qa3 {[%clk 0:00:05]} 33. d6 {[%clk 0:00:12]}  Rd8 {[%clk 0:00:05]} 34. Qc3 {[%clk 0:00:11]}  Rad7 {[%clk 0:00:05]} 35. Rd2 {[%clk 0:00:07]}  a4 {[%clk 0:00:03]} 36. b4 {[%clk 0:00:06]}  Qxc3 {[%clk 0:00:02]} 37. Rxc3 {[%clk 0:00:06]}  Rxd6 {[%clk 0:00:03]} 38. Rxd6 {[%clk 0:00:07]}  Rxd6 {[%clk 0:00:04]} 39. b5 {[%clk 0:00:07]}  Rd2 {[%clk 0:00:03]} 40. b6 {[%clk 0:00:07]}  Rxa2 {[%clk 0:00:02]} 41. b7 {[%clk 0:00:07]}  Rb2 {[%clk 0:00:02]} 42. Rc8+ {[%clk 0:00:07]}  Kg7 {[%clk 0:00:03]} 43. b8=Q {[%clk 0:00:07]}  Rxb8 {[%clk 0:00:03]} 44. Rxb8 {[%clk 0:00:08]}  Bc2 {[%clk 0:00:02]} 45. Ra8 {[%clk 0:00:08]}  f5 {[%clk 0:00:01]} 46. Ra7+ {[%clk 0:00:08]}  Kf8 {[%clk 0:00:00]} 47. Bc6 {[%clk 0:00:09]} 1-0


[Site "https://www.chess.com"]

[Event "Titled Tuesday Blitz July 11 Early 2023"]
[White "Galchenko, Matvey"]
[Black "Nihal Sarin"]
[WhiteFideId "24175480"]
[BlackFideId "25092340"]
[WhiteElo "2872"]
[BlackElo "3036"]
[Result "0-1"]
[Round "7"]
[TimeControl "180+2"]
[Date "2023.07.11"]
[WhiteClock "0:00:17"]
[BlackClock "0:00:13"]
[Board "6"]

1. e4 {[%clk 0:02:59]}  e5 {[%clk 0:02:59]} 2. Nf3 {[%clk 0:02:59]}  Nc6 {[%clk 0:03:00]} 3. d4 {[%clk 0:02:59]}  exd4 {[%clk 0:03:00]} 4. Nxd4 {[%clk 0:03:00]}  Nf6 {[%clk 0:03:00]} 5. Nxc6 {[%clk 0:02:59]}  bxc6 {[%clk 0:03:01]} 6. e5 {[%clk 0:02:59]}  Qe7 {[%clk 0:03:01]} 7. Qe2 {[%clk 0:02:59]}  Nd5 {[%clk 0:03:02]} 8. h4 {[%clk 0:03:00]}  a5 {[%clk 0:03:01]} 9. c4 {[%clk 0:02:52]}  Ba6 {[%clk 0:02:58]} 10. b3 {[%clk 0:02:41]}  g6 {[%clk 0:02:52]} 11. Bg5 {[%clk 0:02:27]}  Qb4+ {[%clk 0:02:44]} 12. Qd2 {[%clk 0:02:13]}  h6 {[%clk 0:02:41]} 13. cxd5 {[%clk 0:01:59]}  hxg5 {[%clk 0:02:38]} 14. Bxa6 {[%clk 0:01:58]}  Rxa6 {[%clk 0:02:37]} 15. Nc3 {[%clk 0:01:56]}  Qxc3 {[%clk 0:02:01]} 16. Qxc3 {[%clk 0:01:55]}  Bb4 {[%clk 0:02:02]} 17. Kd2 {[%clk 0:01:25]}  Rxh4 {[%clk 0:01:23]} 18. Rxh4 {[%clk 0:00:59]}  gxh4 {[%clk 0:01:23]} 19. dxc6 {[%clk 0:00:58]}  Rxc6 {[%clk 0:01:17]} 20. Qxb4 {[%clk 0:00:59]}  axb4 {[%clk 0:01:18]} 21. a4 {[%clk 0:00:59]}  bxa3 {[%clk 0:01:03]} 22. Rxa3 {[%clk 0:00:59]}  Rc5 {[%clk 0:00:49]} 23. f4 {[%clk 0:00:54]}  Rb5 {[%clk 0:00:47]} 24. Kd3 {[%clk 0:00:52]}  Rb4 {[%clk 0:00:43]} 25. Ke3 {[%clk 0:00:47]}  Ke7 {[%clk 0:00:43]} 26. Kf3 {[%clk 0:00:48]}  f5 {[%clk 0:00:34]} 27. exf6+ {[%clk 0:00:33]}  Kxf6 {[%clk 0:00:35]} 28. Ra6+ {[%clk 0:00:33]}  c6 {[%clk 0:00:34]} 29. Ra3 {[%clk 0:00:25]}  Kf5 {[%clk 0:00:31]} 30. g4+ {[%clk 0:00:22]}  hxg3 {[%clk 0:00:31]} 31. Kxg3 {[%clk 0:00:22]}  Rxf4 {[%clk 0:00:30]} 32. Ra5+ {[%clk 0:00:22]}  d5 {[%clk 0:00:31]} 33. Rc5 {[%clk 0:00:22]}  Rb4 {[%clk 0:00:31]} 34. Rxc6 {[%clk 0:00:22]}  Rxb3+ {[%clk 0:00:32]} 35. Kf2 {[%clk 0:00:23]}  g5 {[%clk 0:00:31]} 36. Rd6 {[%clk 0:00:23]}  Ke4 {[%clk 0:00:26]} 37. Rg6 {[%clk 0:00:20]}  Rf3+ {[%clk 0:00:17]} 38. Ke2 {[%clk 0:00:20]}  Rf5 {[%clk 0:00:18]} 39. Re6+ {[%clk 0:00:20]}  Re5 {[%clk 0:00:16]} 40. Rd6 {[%clk 0:00:20]}  d4 {[%clk 0:00:17]} 41. Kd2 {[%clk 0:00:18]}  g4 {[%clk 0:00:14]} 42. Rg6 {[%clk 0:00:17]}  Kf3 {[%clk 0:00:13]} 43. Rf6+ {[%clk 0:00:18]}  Kg2 {[%clk 0:00:13]} 44. Kd3 {[%clk 0:00:18]}  g3 {[%clk 0:00:13]} 45. Kxd4 {[%clk 0:00:19]}  Re8 {[%clk 0:00:14]} 46. Kd3 {[%clk 0:00:19]}  Kg1 {[%clk 0:00:14]} 47. Kd2 {[%clk 0:00:18]}  g2 {[%clk 0:00:13]} 48. Rf7 {[%clk 0:00:17]}  Rh8 {[%clk 0:00:13]} 0-1


[Site "https://www.chess.com"]

[Event "Titled Tuesday Blitz July 11 Early 2023"]
[White "Kollars, Dmitrij"]
[Black "Sattarov, Bobir"]
[WhiteFideId "12909572"]
[BlackFideId "14203081"]
[WhiteElo "3006"]
[BlackElo "2846"]
[Result "1-0"]
[Round "7"]
[TimeControl "180+2"]
[Date "2023.07.11"]
[WhiteClock "0:00:18"]
[BlackClock "0:00:00"]
[Board "8"]

1. e4 {[%clk 0:03:00]}  e5 {[%clk 0:02:59]} 2. Nf3 {[%clk 0:03:00]}  Nc6 {[%clk 0:02:59]} 3. Bb5 {[%clk 0:03:01]}  a6 {[%clk 0:02:59]} 4. Ba4 {[%clk 0:03:02]}  Bc5 {[%clk 0:03:00]} 5. c3 {[%clk 0:03:01]}  Qf6 {[%clk 0:03:00]} 6. O-O {[%clk 0:02:56]}  Nge7 {[%clk 0:03:00]} 7. d4 {[%clk 0:02:55]}  exd4 {[%clk 0:03:01]} 8. Bg5 {[%clk 0:02:55]}  Qg6 {[%clk 0:03:01]} 9. Bxe7 {[%clk 0:02:41]}  Bxe7 {[%clk 0:03:02]} 10. cxd4 {[%clk 0:02:41]}  O-O {[%clk 0:03:03]} 11. Nc3 {[%clk 0:02:40]}  d6 {[%clk 0:03:03]} 12. Nd5 {[%clk 0:02:36]}  Bd8 {[%clk 0:03:03]} 13. Qd3 {[%clk 0:02:20]}  Ne7 {[%clk 0:03:02]} 14. Nf4 {[%clk 0:02:12]}  Qh6 {[%clk 0:03:02]} 15. g3 {[%clk 0:02:09]}  c6 {[%clk 0:03:01]} 16. Rfe1 {[%clk 0:02:05]}  Ng6 {[%clk 0:02:56]} 17. Nxg6 {[%clk 0:02:03]}  fxg6 {[%clk 0:02:36]} 18. h4 {[%clk 0:01:55]}  Kh8 {[%clk 0:02:08]} 19. Bb3 {[%clk 0:01:45]}  Bh3 {[%clk 0:01:53]} 20. Qe3 {[%clk 0:01:28]}  Be7 {[%clk 0:01:35]} 21. Ng5 {[%clk 0:01:24]}  Bxg5 {[%clk 0:01:28]} 22. Qxg5 {[%clk 0:01:20]}  Rae8 {[%clk 0:01:20]} 23. f4 {[%clk 0:01:20]}  Qxg5 {[%clk 0:01:04]} 24. hxg5 {[%clk 0:01:21]}  Bg4 {[%clk 0:01:01]} 25. Re3 {[%clk 0:01:16]}  d5 {[%clk 0:00:52]} 26. Rae1 {[%clk 0:01:10]}  dxe4 {[%clk 0:00:47]} 27. Rxe4 {[%clk 0:01:11]}  Rd8 {[%clk 0:00:42]} 28. Re7 {[%clk 0:01:11]}  Rxd4 {[%clk 0:00:24]} 29. Rxb7 {[%clk 0:01:11]}  Rd3 {[%clk 0:00:24]} 30. Kf2 {[%clk 0:00:46]}  Rf3+ {[%clk 0:00:24]} 31. Kg2 {[%clk 0:00:44]}  Rd8 {[%clk 0:00:16]} 32. Bd1 {[%clk 0:00:23]}  Rd2+ {[%clk 0:00:00]} 33. Re2 {[%clk 0:00:18]} 1-0


[Site "https://www.chess.com"]

[Event "Titled Tuesday Blitz July 11 Early 2023"]
[White "Bachmann, Axel"]
[Black "Deac, Bogdan-Daniel"]
[WhiteFideId "3700488"]
[BlackFideId "1226380"]
[WhiteElo "2804"]
[BlackElo "2989"]
[Result "0-1"]
[Round "7"]
[TimeControl "180+2"]
[Date "2023.07.11"]
[WhiteClock "0:00:00"]
[BlackClock "0:00:03"]
[Board "10"]

1. e4 {[%clk 0:02:55]}  c6 {[%clk 0:02:59]} 2. d4 {[%clk 0:02:50]}  d5 {[%clk 0:03:00]} 3. exd5 {[%clk 0:02:48]}  cxd5 {[%clk 0:03:01]} 4. Bd3 {[%clk 0:02:49]}  Nf6 {[%clk 0:03:00]} 5. h3 {[%clk 0:02:47]}  Nc6 {[%clk 0:02:58]} 6. Nf3 {[%clk 0:02:45]}  g6 {[%clk 0:02:58]} 7. c3 {[%clk 0:02:45]}  Bf5 {[%clk 0:02:57]} 8. O-O {[%clk 0:02:44]}  e6 {[%clk 0:02:56]} 9. Re1 {[%clk 0:02:37]}  Qc7 {[%clk 0:02:51]} 10. a4 {[%clk 0:02:34]}  h6 {[%clk 0:02:50]} 11. Na3 {[%clk 0:02:33]}  a6 {[%clk 0:02:45]} 12. Nc2 {[%clk 0:02:25]}  Be7 {[%clk 0:02:31]} 13. Ne5 {[%clk 0:02:08]}  Bd6 {[%clk 0:02:19]} 14. Bf4 {[%clk 0:01:46]}  Bxd3 {[%clk 0:01:45]} 15. Qxd3 {[%clk 0:01:47]}  g5 {[%clk 0:01:45]} 16. Nxc6 {[%clk 0:01:36]}  gxf4 {[%clk 0:01:31]} 17. Ne5 {[%clk 0:01:36]}  Rg8 {[%clk 0:01:32]} 18. Qf3 {[%clk 0:01:25]}  Ne4 {[%clk 0:01:18]} 19. Nb4 {[%clk 0:00:52]}  Bxe5 {[%clk 0:00:46]} 20. dxe5 {[%clk 0:00:53]}  Ng5 {[%clk 0:00:46]} 21. Qh5 {[%clk 0:00:48]}  Qc4 {[%clk 0:00:46]} 22. Rad1 {[%clk 0:00:36]}  f3 {[%clk 0:00:42]} 23. Rd4 {[%clk 0:00:27]}  Qb3 {[%clk 0:00:39]} 24. Rg4 {[%clk 0:00:16]}  fxg2 {[%clk 0:00:34]} 25. Kxg2 {[%clk 0:00:17]}  O-O-O {[%clk 0:00:30]} 26. Re2 {[%clk 0:00:14]}  Kb8 {[%clk 0:00:21]} 27. Qxh6 {[%clk 0:00:13]}  Ne4 {[%clk 0:00:19]} 28. Qh7 {[%clk 0:00:14]}  Rxg4+ {[%clk 0:00:11]} 29. hxg4 {[%clk 0:00:14]}  Qd1 {[%clk 0:00:11]} 30. Rxe4 {[%clk 0:00:04]}  dxe4 {[%clk 0:00:11]} 31. Qxe4 {[%clk 0:00:04]}  Rh8 {[%clk 0:00:07]} 32. Kg3 {[%clk 0:00:03]}  Rh1 {[%clk 0:00:06]} 33. Qd4 {[%clk 0:00:02]}  Qg1+ {[%clk 0:00:05]} 34. Kf4 {[%clk 0:00:02]}  Qh2+ {[%clk 0:00:03]} 35. Ke4 {[%clk 0:00:02]}  Qg2+ {[%clk 0:00:03]} 36. Kd3 {[%clk 0:00:02]}  Qf3+ {[%clk 0:00:04]} 37. Kc4 {[%clk 0:00:03]}  Qe2+ {[%clk 0:00:03]} 38. Kc5 {[%clk 0:00:03]}  Rh8 {[%clk 0:00:04]} 39. Kb6 {[%clk 0:00:03]}  Ka8 {[%clk 0:00:02]} 40. f4 {[%clk 0:00:03]}  Rc8 {[%clk 0:00:02]} 41. f5 {[%clk 0:00:02]}  a5 {[%clk 0:00:02]} 42. Nd3 {[%clk 0:00:01]}  Qc2 {[%clk 0:00:02]} 43. Nc5 {[%clk 0:00:01]}  Qxb2+ {[%clk 0:00:02]} 44. Kxa5 {[%clk 0:00:02]}  b6+ {[%clk 0:00:02]} 45. Ka6 {[%clk 0:00:03]}  Qe2+ {[%clk 0:00:02]} 46. c4 {[%clk 0:00:02]}  bxc5 {[%clk 0:00:02]} 47. Qc3 {[%clk 0:00:02]}  Qe4 {[%clk 0:00:02]} 48. Qb3 {[%clk 0:00:02]}  Qc6+ {[%clk 0:00:02]} 49. Qb6 {[%clk 0:00:02]}  exf5 {[%clk 0:00:03]} 50. gxf5 {[%clk 0:00:00]}  Qxa4+ {[%clk 0:00:03]} 0-1


[Site "https://www.chess.com"]

[Event "Titled Tuesday Blitz July 11 Early 2023"]
[White "Maximov, Dmitry"]
[Black "Svane, Rasmus"]
[WhiteFideId "14105659"]
[BlackFideId "4657101"]
[WhiteElo "2785"]
[BlackElo "2957"]
[Result "1-0"]
[Round "7"]
[TimeControl "180+2"]
[Date "2023.07.11"]
[WhiteClock "0:00:20"]
[BlackClock "0:00:14"]
[Board "11"]

1. e4 {[%clk 0:03:00]}  c6 {[%clk 0:03:00]} 2. Nf3 {[%clk 0:03:00]}  d5 {[%clk 0:03:01]} 3. Nc3 {[%clk 0:03:01]}  dxe4 {[%clk 0:03:01]} 4. Nxe4 {[%clk 0:03:02]}  Nf6 {[%clk 0:03:02]} 5. Qe2 {[%clk 0:03:02]}  Nxe4 {[%clk 0:03:02]} 6. Qxe4 {[%clk 0:03:02]}  Qa5 {[%clk 0:03:03]} 7. c3 {[%clk 0:02:55]}  Bf5 {[%clk 0:03:02]} 8. Qe3 {[%clk 0:02:55]}  e6 {[%clk 0:03:02]} 9. d4 {[%clk 0:02:55]}  Bd6 {[%clk 0:03:01]} 10. Be2 {[%clk 0:02:54]}  O-O {[%clk 0:03:00]} 11. O-O {[%clk 0:02:55]}  Nd7 {[%clk 0:03:00]} 12. h3 {[%clk 0:02:54]}  Rfe8 {[%clk 0:02:59]} 13. Bc4 {[%clk 0:02:33]}  Qc7 {[%clk 0:02:55]} 14. Bd2 {[%clk 0:02:25]}  e5 {[%clk 0:02:55]} 15. Rfe1 {[%clk 0:02:17]}  Re7 {[%clk 0:02:30]} 16. Nh4 {[%clk 0:02:04]}  Bg6 {[%clk 0:02:20]} 17. Nxg6 {[%clk 0:02:04]}  hxg6 {[%clk 0:02:21]} 18. Qg5 {[%clk 0:02:03]}  Nf8 {[%clk 0:01:31]} 19. Re4 {[%clk 0:02:01]}  exd4 {[%clk 0:01:19]} 20. Rxd4 {[%clk 0:02:00]}  Be5 {[%clk 0:01:17]} 21. Rg4 {[%clk 0:02:00]}  Bf6 {[%clk 0:01:14]} 22. Qc5 {[%clk 0:01:58]}  b6 {[%clk 0:01:10]} 23. Qa3 {[%clk 0:01:56]}  b5 {[%clk 0:01:07]} 24. Bf1 {[%clk 0:01:38]}  Ne6 {[%clk 0:00:56]} 25. Be3 {[%clk 0:01:35]}  Rd7 {[%clk 0:00:54]} 26. Qb3 {[%clk 0:01:34]}  a5 {[%clk 0:00:51]} 27. a4 {[%clk 0:01:31]}  bxa4 {[%clk 0:00:52]} 28. Raxa4 {[%clk 0:01:31]}  Rad8 {[%clk 0:00:39]} 29. Ra1 {[%clk 0:01:22]}  Rb8 {[%clk 0:00:36]} 30. Qa2 {[%clk 0:01:22]}  Qb7 {[%clk 0:00:35]} 31. Bc4 {[%clk 0:01:09]}  Nf8 {[%clk 0:00:36]} 32. Bf4 {[%clk 0:00:42]}  Rbd8 {[%clk 0:00:35]} 33. Kh2 {[%clk 0:00:32]}  Qb6 {[%clk 0:00:34]} 34. Bg3 {[%clk 0:00:32]}  Rb7 {[%clk 0:00:32]} 35. Re1 {[%clk 0:00:27]}  Qxb2 {[%clk 0:00:29]} 36. Bxf7+ {[%clk 0:00:26]}  Kh7 {[%clk 0:00:27]} 37. Ree4 {[%clk 0:00:23]}  g5 {[%clk 0:00:22]} 38. Qc4 {[%clk 0:00:20]}  Qb5 {[%clk 0:00:19]} 39. Rh4+ {[%clk 0:00:19]}  gxh4 {[%clk 0:00:15]} 40. Rxh4+ {[%clk 0:00:19]}  Bxh4 {[%clk 0:00:13]} 41. Qxh4+ {[%clk 0:00:19]}  Qh5 {[%clk 0:00:14]} 42. Qxh5# {[%clk 0:00:20]} 1-0


[Site "https://www.chess.com"]

[Event "Titled Tuesday Blitz July 11 Early 2023"]
[White "Kumsiashvili, Nikoloz"]
[Black "Tang, Andrew"]
[WhiteFideId "13600621"]
[BlackFideId "2059630"]
[WhiteElo "2733"]
[BlackElo "2916"]
[Result "0-1"]
[Round "7"]
[TimeControl "180+2"]
[Date "2023.07.11"]
[WhiteClock "0:00:23"]
[BlackClock "0:00:18"]
[Board "14"]

1. Nf3 {[%clk 0:03:00]}  d5 {[%clk 0:02:59]} 2. b3 {[%clk 0:03:01]}  c5 {[%clk 0:02:59]} 3. Bb2 {[%clk 0:03:01]}  Nc6 {[%clk 0:03:00]} 4. e3 {[%clk 0:03:02]}  Nf6 {[%clk 0:03:01]} 5. Bb5 {[%clk 0:03:02]}  Qb6 {[%clk 0:03:02]} 6. Bxc6+ {[%clk 0:03:00]}  Qxc6 {[%clk 0:03:02]} 7. O-O {[%clk 0:03:00]}  g6 {[%clk 0:03:03]} 8. d3 {[%clk 0:02:57]}  Bg7 {[%clk 0:03:03]} 9. Nbd2 {[%clk 0:02:58]}  O-O {[%clk 0:03:03]} 10. c4 {[%clk 0:02:58]}  b5 {[%clk 0:03:02]} 11. cxd5 {[%clk 0:02:55]}  Qxd5 {[%clk 0:03:03]} 12. Nb1 {[%clk 0:02:44]}  Rd8 {[%clk 0:03:02]} 13. Nc3 {[%clk 0:02:44]}  Qc6 {[%clk 0:02:46]} 14. Qe2 {[%clk 0:02:39]}  Ba6 {[%clk 0:02:40]} 15. Rfd1 {[%clk 0:02:31]}  Rac8 {[%clk 0:02:29]} 16. Rac1 {[%clk 0:02:26]}  Qd6 {[%clk 0:02:21]} 17. Ne4 {[%clk 0:02:06]}  Nxe4 {[%clk 0:02:14]} 18. dxe4 {[%clk 0:02:07]}  b4 {[%clk 0:00:47]} 19. Rxd6 {[%clk 0:01:29]}  Bxe2 {[%clk 0:00:46]} 20. Rxd8+ {[%clk 0:01:29]}  Rxd8 {[%clk 0:00:47]} 21. Bxg7 {[%clk 0:01:29]}  Kxg7 {[%clk 0:00:47]} 22. h3 {[%clk 0:01:24]}  Bxf3 {[%clk 0:00:20]} 23. gxf3 {[%clk 0:01:23]}  Rd2 {[%clk 0:00:21]} 24. Rxc5 {[%clk 0:01:19]}  Rxa2 {[%clk 0:00:21]} 25. Rb5 {[%clk 0:01:04]}  a5 {[%clk 0:00:21]} 26. Rb7 {[%clk 0:01:03]}  Kf6 {[%clk 0:00:19]} 27. f4 {[%clk 0:01:00]}  Ra3 {[%clk 0:00:19]} 28. Rb5 {[%clk 0:01:00]}  Ke6 {[%clk 0:00:19]} 29. Kg2 {[%clk 0:00:59]}  Kd6 {[%clk 0:00:19]} 30. Rb7 {[%clk 0:00:55]}  Rxb3 {[%clk 0:00:19]} 31. e5+ {[%clk 0:00:55]}  Ke6 {[%clk 0:00:19]} 32. Rb6+ {[%clk 0:00:53]}  Kd7 {[%clk 0:00:17]} 33. Rb7+ {[%clk 0:00:53]}  Kd8 {[%clk 0:00:17]} 34. Rb8+ {[%clk 0:00:53]}  Kc7 {[%clk 0:00:18]} 35. Ra8 {[%clk 0:00:52]}  Ra3 {[%clk 0:00:18]} 36. Ra7+ {[%clk 0:00:52]}  Kd8 {[%clk 0:00:18]} 37. Ra8+ {[%clk 0:00:52]}  Kd7 {[%clk 0:00:18]} 38. Ra7+ {[%clk 0:00:52]}  Ke6 {[%clk 0:00:19]} 39. Ra6+ {[%clk 0:00:53]}  Kd5 {[%clk 0:00:19]} 40. Ra7 {[%clk 0:00:52]}  b3 {[%clk 0:00:19]} 41. Rxe7 {[%clk 0:00:52]}  Ra4 {[%clk 0:00:18]} 42. Rd7+ {[%clk 0:00:48]}  Ke6 {[%clk 0:00:18]} 43. Rd6+ {[%clk 0:00:39]}  Ke7 {[%clk 0:00:18]} 44. Rd1 {[%clk 0:00:23]}  b2 {[%clk 0:00:18]} 0-1


[Site "https://www.chess.com"]

[Event "Titled Tuesday Blitz July 11 Early 2023"]
[White "Goltsev, Dmitry"]
[Black "Oparin, Grigoriy"]
[WhiteFideId "24176710"]
[BlackFideId "24125890"]
[WhiteElo "2773"]
[BlackElo "2949"]
[Result "0-1"]
[Round "7"]
[TimeControl "180+2"]
[Date "2023.07.11"]
[WhiteClock "0:00:00"]
[BlackClock "0:00:17"]
[Board "18"]

1. e4 {[%clk 0:02:59]}  c5 {[%clk 0:02:53]} 2. Nf3 {[%clk 0:02:58]}  e6 {[%clk 0:02:53]} 3. d4 {[%clk 0:02:58]}  cxd4 {[%clk 0:02:54]} 4. Nxd4 {[%clk 0:02:59]}  Nf6 {[%clk 0:02:55]} 5. Nc3 {[%clk 0:02:58]}  Nc6 {[%clk 0:02:56]} 6. Be3 {[%clk 0:02:57]}  Bb4 {[%clk 0:02:54]} 7. Bd3 {[%clk 0:02:49]}  d5 {[%clk 0:02:53]} 8. exd5 {[%clk 0:02:47]}  Nxd5 {[%clk 0:02:51]} 9. Nxc6 {[%clk 0:02:47]}  Nxe3 {[%clk 0:02:34]} 10. Nxd8 {[%clk 0:02:40]}  Nxd1 {[%clk 0:02:33]} 11. Rxd1 {[%clk 0:02:40]}  Kxd8 {[%clk 0:02:29]} 12. Bxh7+ {[%clk 0:02:38]}  Ke7 {[%clk 0:02:29]} 13. Be4 {[%clk 0:02:38]}  Rh5 {[%clk 0:02:12]} 14. O-O {[%clk 0:02:32]}  Bxc3 {[%clk 0:02:02]} 15. bxc3 {[%clk 0:02:31]}  Rc5 {[%clk 0:02:01]} 16. Rd3 {[%clk 0:02:22]}  Bd7 {[%clk 0:02:01]} 17. Rfd1 {[%clk 0:02:08]}  Ba4 {[%clk 0:01:58]} 18. Rd4 {[%clk 0:01:49]}  Be8 {[%clk 0:01:47]} 19. Bxb7 {[%clk 0:01:47]}  Rb8 {[%clk 0:01:47]} 20. Be4 {[%clk 0:01:40]}  Rxc3 {[%clk 0:01:48]} 21. h4 {[%clk 0:01:14]}  Rb2 {[%clk 0:01:40]} 22. a4 {[%clk 0:01:04]}  a5 {[%clk 0:01:26]} 23. Bd3 {[%clk 0:00:45]}  Bc6 {[%clk 0:01:21]} 24. h5 {[%clk 0:00:32]}  Rc5 {[%clk 0:01:17]} 25. Rg4 {[%clk 0:00:20]}  Rxh5 {[%clk 0:01:07]} 26. Rxg7 {[%clk 0:00:19]}  Kf6 {[%clk 0:01:07]} 27. Rg8 {[%clk 0:00:17]}  Bxa4 {[%clk 0:01:07]} 28. Ra8 {[%clk 0:00:15]}  Rg5 {[%clk 0:00:54]} 29. Ra1 {[%clk 0:00:07]}  Bc6 {[%clk 0:00:52]} 30. R8xa5 {[%clk 0:00:07]}  Rxg2+ {[%clk 0:00:52]} 31. Kf1 {[%clk 0:00:07]}  Rh2 {[%clk 0:00:51]} 32. Ke2 {[%clk 0:00:07]}  Rb8 {[%clk 0:00:47]} 33. Ra7 {[%clk 0:00:07]}  Rg8 {[%clk 0:00:39]} 34. Rc7 {[%clk 0:00:07]}  Bh1 {[%clk 0:00:35]} 35. Raa7 {[%clk 0:00:06]}  Rg7 {[%clk 0:00:35]} 36. Bb5 {[%clk 0:00:05]}  Be4 {[%clk 0:00:34]} 37. Ra4 {[%clk 0:00:04]}  Bf5 {[%clk 0:00:30]} 38. Bd3 {[%clk 0:00:04]}  Rgg2 {[%clk 0:00:26]} 39. Bxf5 {[%clk 0:00:02]}  Rxf2+ {[%clk 0:00:26]} 40. Kd3 {[%clk 0:00:02]}  Rxf5 {[%clk 0:00:27]} 41. Raa7 {[%clk 0:00:03]}  Kg6 {[%clk 0:00:27]} 42. Kc3 {[%clk 0:00:02]}  Rh3+ {[%clk 0:00:25]} 43. Kd4 {[%clk 0:00:02]}  Rh4+ {[%clk 0:00:26]} 44. Kc3 {[%clk 0:00:03]}  Rf3+ {[%clk 0:00:26]} 45. Kb2 {[%clk 0:00:03]}  e5 {[%clk 0:00:25]} 46. Rab7 {[%clk 0:00:04]}  f6 {[%clk 0:00:24]} 47. Rb6 {[%clk 0:00:04]}  Rh2 {[%clk 0:00:22]} 48. Rb3 {[%clk 0:00:04]}  Rf4 {[%clk 0:00:20]} 49. Ka3 {[%clk 0:00:04]}  Kg5 {[%clk 0:00:20]} 50. c4 {[%clk 0:00:04]}  e4 {[%clk 0:00:20]} 51. c5 {[%clk 0:00:04]}  Rf3 {[%clk 0:00:20]} 52. c6 {[%clk 0:00:05]}  Rc2 {[%clk 0:00:19]} 53. Rc8 {[%clk 0:00:05]}  Kf4 {[%clk 0:00:18]} 54. c7 {[%clk 0:00:04]}  f5 {[%clk 0:00:19]} 55. Kb4 {[%clk 0:00:03]}  Rxb3+ {[%clk 0:00:15]} 56. Kxb3 {[%clk 0:00:04]}  Rc1 {[%clk 0:00:16]} 57. Kb2 {[%clk 0:00:04]}  Rc6 {[%clk 0:00:16]} 58. Kb3 {[%clk 0:00:05]}  e3 {[%clk 0:00:17]} 59. Kb4 {[%clk 0:00:06]}  Rc1 {[%clk 0:00:16]} 60. Kb5 {[%clk 0:00:06]}  Kf3 {[%clk 0:00:16]} 61. Kb6 {[%clk 0:00:03]}  f4 {[%clk 0:00:16]} 62. Re8 {[%clk 0:00:02]}  e2 {[%clk 0:00:17]} 63. Kb7 {[%clk 0:00:02]}  Kf2 {[%clk 0:00:17]} 64. Re4 {[%clk 0:00:02]}  f3 {[%clk 0:00:17]} 65. Rc4 {[%clk 0:00:00]}  Rxc4 {[%clk 0:00:17]} 0-1


[Site "https://www.chess.com"]

[Event "Titled Tuesday Blitz July 11 Early 2023"]
[White "Vokhidov, Shamsiddin"]
[Black "Nasuta, Grzegorz"]
[WhiteFideId "14204223"]
[BlackFideId "1141686"]
[WhiteElo "2922"]
[BlackElo "2759"]
[Result "1-0"]
[Round "7"]
[TimeControl "180+2"]
[Date "2023.07.11"]
[WhiteClock "0:01:49"]
[BlackClock "0:00:03"]
[Board "20"]

1. e4 {[%clk 0:03:00]}  c5 {[%clk 0:02:59]} 2. Nf3 {[%clk 0:03:01]}  d6 {[%clk 0:02:58]} 3. d4 {[%clk 0:03:01]}  cxd4 {[%clk 0:02:58]} 4. Nxd4 {[%clk 0:03:02]}  Nf6 {[%clk 0:02:59]} 5. Nc3 {[%clk 0:03:03]}  a6 {[%clk 0:02:59]} 6. h3 {[%clk 0:03:03]}  e6 {[%clk 0:02:59]} 7. g4 {[%clk 0:03:03]}  h6 {[%clk 0:02:56]} 8. Bg2 {[%clk 0:03:03]}  Be7 {[%clk 0:02:56]} 9. h4 {[%clk 0:03:03]}  Nc6 {[%clk 0:02:04]} 10. g5 {[%clk 0:02:58]}  hxg5 {[%clk 0:02:05]} 11. hxg5 {[%clk 0:02:59]}  Rxh1+ {[%clk 0:02:04]} 12. Bxh1 {[%clk 0:03:00]}  Nh7 {[%clk 0:02:02]} 13. Nxc6 {[%clk 0:02:52]}  bxc6 {[%clk 0:02:01]} 14. Qh5 {[%clk 0:02:53]}  Nf8 {[%clk 0:02:01]} 15. Be3 {[%clk 0:02:44]}  Rb8 {[%clk 0:01:59]} 16. O-O-O {[%clk 0:02:44]}  d5 {[%clk 0:02:00]} 17. f4 {[%clk 0:02:39]}  Qa5 {[%clk 0:01:58]} 18. Bd4 {[%clk 0:02:36]}  Qb4 {[%clk 0:00:55]} 19. b3 {[%clk 0:02:35]}  c5 {[%clk 0:00:41]} 20. Be5 {[%clk 0:02:35]}  d4 {[%clk 0:00:41]} 21. Nb1 {[%clk 0:02:33]}  Rb7 {[%clk 0:00:31]} 22. f5 {[%clk 0:02:30]}  Rb6 {[%clk 0:00:15]} 23. f6 {[%clk 0:02:23]}  gxf6 {[%clk 0:00:15]} 24. gxf6 {[%clk 0:02:24]}  Bd6 {[%clk 0:00:15]} 25. Bxd6 {[%clk 0:02:17]}  Rxd6 {[%clk 0:00:16]} 26. e5 {[%clk 0:02:18]}  Rb6 {[%clk 0:00:16]} 27. Rg1 {[%clk 0:02:15]}  Bb7 {[%clk 0:00:15]} 28. Rg7 {[%clk 0:02:12]}  Qe1+ {[%clk 0:00:12]} 29. Kb2 {[%clk 0:02:12]}  Ng6 {[%clk 0:00:10]} 30. Rxg6 {[%clk 0:02:05]}  fxg6 {[%clk 0:00:10]} 31. Qxg6+ {[%clk 0:01:57]}  Kd8 {[%clk 0:00:03]} 32. f7 {[%clk 0:01:49]} 1-0


[Site "https://www.chess.com"]